[Event "Centenary THK University 2019"]
[Site "Ankara"]
[Date "2019.05.19"]
[Round "5"]
[White "Aliyev, Elnur"]
[Black "Ozcan, Kadir Kutay"]
[Result "1-0"]
[ECO "A40"]
[WhiteElo "2146"]
[BlackElo "1822"]
[Annotator "NA RC"]
[PlyCount "111"]
[EventDate "2019.05.17"]
[EventType "swiss"]
[EventCountry "TUR"]
[SourceTitle "playchess.com"]
[Source "ChessBase"]
[SourceQuality "1"]
[TimeControl "5400+30"]

1. d4 {[%emt 0:30:30]} c6 {[%emt 0:30:30]} 2. c4 {[%emt 0:00:30]} b5 {[%emt 0:00:00]} 3. e3 {[%emt 0:01:30]} (3. c5 d6 4. cxd6 exd6 5. e4 Nf6 6. Bd3 Be7 7. Ne2 O-O 8. O-O Re8 9. f4 d5 10. e5 Ne4 {1-0 (26) Korobov,A (2605)-Fier,A (2581) Beijing 2008}) 3... bxc4 {[%emt 0:01:00]} 4. Bxc4 {[%emt 0:00:30]} d5 {[%emt 0:00:30]} 5. Bd3 {[%emt 0:01:30]} Nf6 {[%emt 0:00:00]} 6. Nc3 {[%emt 0:00:30] A40: Unusual replies to 1 d4} e6 {[%emt 0:00:00]} 7. Nf3 {[%emt 0:00:30]} Bd6 {[%emt 0:00:30]} 8. O-O {[%emt 0:00:30]} Nbd7 $146 {[%emt 0:00:30]} ({Predecessor:} 8... O-O 9. b3 Nbd7 10. Bb2 Re8 {0-1 (33) Sliwerski,R (2200)-Praszak,M (2257) Lublin 2006}) 9. e4 {[%emt 0:02:30]} dxe4 {[%emt 0:00:30]} 10. Nxe4 {[%emt 0:00:00]} Nxe4 {[%emt 0:01:30]} 11. Bxe4 {[%emt 0:00:00]} Qc7 {[%emt 0:00:30]} 12. Qa4 {[%emt 0:11:30]} Bb7 {[%emt 0:00:30]} 13. Bd2 {[%emt 0:00:30]} Nf6 {[%emt 0:00:30]} 14. Ba5 {[%emt 0:00:30]} Qd7 {[%emt 0:00:30]} 15. Bc2 {[%emt 0:02:30]} O-O {[%emt 0:00:30]} 16. Ne5 {[%emt 0:00:30]} Bxe5 {[%emt 0:06:30]} 17. dxe5 {[%emt 0:00:30]} Nd5 {[%emt 0:00:30]} 18. Qh4 {[%emt 0:01:30]} g6 {[%emt 0:03:30]} 19. Rad1 {[%emt 0:00:30]} c5 {[%emt 0:03:30]} 20. Bd2 {[%emt 0:04:30]} f5 {[%emt 0:00:30]} 21. exf6 {[%emt 0:00:30]} Rxf6 {[%emt 0:01:30]} 22. Bc3 {[%emt 0:12:30]} Rff8 {[%emt 0:00:30]} 23. Qh6 {[%emt 0:05:30]} Qf7 {[%emt 0:00:30]} 24. Be5 {[%emt 0:03:24]} Rad8 {[%emt 0:01:30]} 25. h4 {[%emt 0:07:16]} Nb4 {[%emt 0:02:30]} 26. Rxd8 {[%emt 0:00:35]} Rxd8 {[%emt 0:00:30]} 27. Bb1 {[%emt 0:02:25]} Nc6 {[%emt 0:00:30]} 28. Qe3 {[%emt 0:05:47]} Nd4 {[%emt 0:02:30]} 29. h5 {[%emt 0:00:40]} Nf5 {[%emt 0:03:30]} 30. Qg5 {[%emt 0:03:46]} Rd5 {[%emt 0:00:30]} 31. Re1 {[%emt 0:00:23]} a5 {[%emt 0:04:30]} 32. a3 {[%emt 0:00:58]} c4 {[%emt 0:01:30]} 33. hxg6 {[%emt 0:00:57]} (33. Qg4 $18) 33... hxg6 $2 {[%emt 0:00:30]} (33... Qxg6 {was necessary.} 34. Qxg6+ hxg6) 34. Bc3 {[%emt 0:00:31]} Rb5 {[%emt 0:05:30]} 35. Qf4 {[%emt 0:00:34]} Bd5 {[%emt 0:01:30]} 36. Qe5 {[%emt 0:00:36]} Qg7 {[%emt 0:00:00]} 37. Qh2 $2 {[%emt 0:00:31]} Qh7 {[%emt 0:00:00]} 38. Qe5 {[%emt 0:00:20]} Qg7 {[%emt 0:01:30]} 39. Qxg7+ {[%emt 0:00:30]} ({Better is} 39. Qe2 $18 Qf7 {[#]}) 39... Nxg7 {[%emt 0:00:30]} 40. Bxg6 {[%emt 0:00:30]} Bxg2 {[%emt 0:00:30]} 41. Kxg2 {[%emt 0:00:30]} Rg5+ {[%emt 0:00:30]} 42. Kf1 {[%emt 0:00:30]} Rxg6 {[%emt 0:00:30]} 43. Re4 {[%emt 0:00:30]} Nf5 {[%emt 0:00:30]} 44. Rxc4 {[%emt 0:00:30]} Ne7 {[%emt 0:00:30]} 45. Bxa5 {[%emt 0:00:30]} Nd5 {[%emt 0:00:30]} 46. a4 {[%emt 0:00:30]} Rf6 {[%emt 0:00:30]} 47. Ke2 {[%emt 0:00:30]} Kf7 {[%emt 0:00:30]} 48. Bd2 {[%emt 0:00:30]} e5 {[%emt 0:00:30]} 49. Rc5 {[%emt 0:00:30]} Rd6 {[%emt 0:00:00]} 50. b4 {[%emt 0:00:36]} Ke6 {[%emt 0:00:00]} 51. a5 {[%emt 0:00:18]} Ne7 {[%emt 0:00:30]} 52. b5 {[%emt 0:00:57]} Nf5 {[%emt 0:00:00]} 53. Be3 {[%emt 0:00:00]} Ne7 {[%emt 0:01:00]} 54. a6 {[%emt 0:00:04]} Nd5 {[%emt 0:00:00]} 55. Rc1 {[%emt 0:01:10]} Rd8 $18 {[%emt 0:01:00]} 56. b6 {[%emt 0:00:24]} 1-0

[Event "Centenary THK University 2019"]
[Site "Ankara"]
[Date "2019.05.19"]
[Round "5"]
[White "Buker, Muhittin"]
[Black "Ugur, Cem"]
[Result "1-0"]
[ECO "E94"]
[WhiteElo "1993"]
[BlackElo "1593"]
[Annotator "NA RC"]
[PlyCount "77"]
[EventDate "2019.05.17"]
[EventType "swiss"]
[EventCountry "TUR"]
[SourceTitle "playchess.com"]
[Source "ChessBase"]
[SourceQuality "1"]
[TimeControl "5400+30"]

1. d4 {[%emt 0:30:30]} Nf6 {[%emt 0:30:30]} 2. c4 {[%emt 0:00:30]} g6 {[%emt 0:00:30]} 3. Nc3 {[%emt 0:00:30]} Bg7 {[%emt 0:00:00]} 4. e4 {[%emt 0:00:00]} d6 {[%emt 0:00:00]} 5. Nf3 {[%emt 0:00:00]} O-O {[%emt 0:00:00]} 6. Be2 {[%emt 0:00:00]} e5 {[%emt 0:00:00]} 7. O-O {[%emt 0:00:00]} exd4 {[%emt 0:00:00]} 8. Nxd4 {[%emt 0:00:30]} Re8 {[%emt 0:00:00]} 9. f3 {[%emt 0:00:00]} Nc6 {[%emt 0:00:30]} 10. Be3 {[%emt 0:01:00]} h6 {[%emt 0:04:30] E94: King's Indian: Classical: 6 Be2 e5 7 0-0: Various Black 7th moves} (10... Nh5 11. Qd2 Nf4 12. Rfd1 Nxd4 13. Bxd4 Bxd4+ 14. Qxd4 Nxe2+ 15. Nxe2 b6 16. Nc3 Bb7 17. Nd5 Bxd5 18. cxd5 Qg5 19. Rac1 Rac8 20. Qd2 Qe5 21. Qd4 Qg5 22. Qd2 Qe5 23. Qd4 Qg5 24. Qd2 {½-½ (24) Mamedyarov,S (2772)-Radjabov,T (2710) Shamkir 2017}) 11. Qd2 {[%emt 0:00:30]} Kh7 {[%emt 0:01:30]} 12. Rad1 {[%emt 0:00:30]} Bd7 {[%emt 0:06:30]} 13. Nb3 $146 {[%emt 0:04:30]} ({Predecessor:} 13. Rfe1 a6 14. Bf1 Rb8 15. c5 dxc5 16. Nxc6 Bxc6 17. Qf2 Nd7 18. Bxc5 {1-0 (41) Roescher,M (2022)-Kretschmann,M Germany 2008}) 13... a5 {[%emt 0:04:30]} 14. a4 {[%emt 0:01:30]} Nb4 {[%emt 0:02:30]} 15. Rfe1 {[%emt 0:01:30]} c6 {[%emt 0:12:30]} 16. Bf1 {[%emt 0:13:30]} d5 {[%emt 0:05:30]} 17. cxd5 {[%emt 0:00:30]} cxd5 {[%emt 0:00:30]} 18. exd5 {[%emt 0:01:30]} Bf5 {[%emt 0:00:30]} 19. Nd4 {[%emt 0:02:30]} Bd7 {[%emt 0:15:30]} 20. Bc4 {[%emt 0:00:30]} Nfxd5 {[%emt 0:04:26]} 21. Nxd5 {[%emt 0:04:30]} Nxd5 {[%emt 0:00:44]} 22. Bxd5 {[%emt 0:00:30]} Bxa4 {[%emt 0:00:05]} 23. Bxf7 {[%emt 0:09:30]} Rxe3 {[%emt 0:02:00]} 24. Qxe3 {[%emt 0:09:15]} Bxd1 {[%emt 0:00:20]} 25. Rxd1 {[%emt 0:01:30]} Qf6 {[%emt 0:03:52]} 26. Bb3 {[%emt 0:00:23]} Rd8 {[%emt 0:00:26]} 27. Ne6 {[%emt 0:00:16]} Re8 {[%emt 0:02:52]} 28. Ng5+ {[%emt 0:00:30]} hxg5 {[%emt 0:00:00]} 29. Qxe8 {[%emt 0:00:14]} Qb6+ {[%emt 0:00:00]} 30. Kf1 {[%emt 0:01:13]} Qxb3 {[%emt 0:00:00]} 31. Qd7 {[%emt 0:00:00]} Qc4+ {[%emt 0:02:03]} 32. Kg1 {[%emt 0:00:07]} b5 {[%emt 0:01:15]} 33. Qh3+ {[%emt 0:00:19]} Kg8 {[%emt 0:00:00]} 34. Rd8+ {[%emt 0:00:30]} Bf8 {[%emt 0:00:30]} 35. Qd7 {[%emt 0:00:30]} Qc1+ {[%emt 0:00:30]} 36. Qd1 {[%emt 0:00:35]} Qxd1+ {[%emt 0:03:01]} 37. Rxd1 {[%emt 0:00:30]} Bg7 {[%emt 0:00:30]} 38. b3 {[%emt 0:00:30]} b4 {[%emt 0:00:10]} 39. Rd5 {[%emt 0:00:00]} 1-0

[Event "Centenary THK University 2019"]
[Site "Ankara"]
[Date "2019.05.19"]
[Round "5"]
[White "Gozubuyukoglu, Selami"]
[Black "Celikel, Fatih"]
[Result "1/2-1/2"]
[ECO "B33"]
[WhiteElo "1818"]
[BlackElo "1868"]
[Annotator "NA RC"]
[PlyCount "104"]
[EventDate "2019.05.17"]
[EventType "swiss"]
[EventCountry "TUR"]
[SourceTitle "playchess.com"]
[Source "ChessBase"]
[SourceQuality "1"]
[TimeControl "5400+30"]

1. e4 {[%emt 0:30:30]} c5 {[%emt 0:30:30]} 2. Nf3 {[%emt 0:00:30]} Nc6 {[%emt 0:00:00]} 3. d4 {[%emt 0:00:00]} cxd4 {[%emt 0:00:00]} 4. Nxd4 {[%emt 0:00:00]} Nf6 {[%emt 0:00:00]} 5. Nc3 {[%emt 0:00:00]} e5 {[%emt 0:00:00]} 6. Ndb5 {[%emt 0:00:00]} d6 {[%emt 0:00:30]} 7. Bg5 {[%emt 0:00:30]} a6 {[%emt 0:00:30]} 8. Na3 {[%emt 0:00:00]} b5 {[%emt 0:00:30]} 9. Nd5 {[%emt 0:00:00]} Be7 {[%emt 0:00:30]} 10. Bxf6 {[%emt 0:00:30]} Bxf6 {[%emt 0:00:00]} 11. c3 {[%emt 0:00:30]} Bg5 {[%emt 0:00:00]} 12. Nc2 {[%emt 0:00:30]} O-O {[%emt 0:02:30]} 13. Bd3 {[%emt 0:00:30]} Be6 {[%emt 0:01:30] B33: Sicilian: Pelikan and Sveshnikov Variations} (13... Ne7 14. Ncb4 a5 15. Nxe7+ Qxe7 16. Nd5 Qb7 17. Qh5 Bd8 18. Rd1 Be6 19. Bc2 b4 20. O-O bxc3 21. bxc3 Qb2 {1-0 (36) Guliyev,N (2555)-Shirov,A (2705) Venaco 2005}) 14. O-O {[%emt 0:01:30]} Ne7 {[%emt 0:03:30]} 15. Nxe7+ {[%emt 0:06:30]} Qxe7 {[%emt 0:01:30]} 16. Qe2 {[%emt 0:01:30]} g6 {[%emt 0:06:30]} 17. a4 {[%emt 0:04:30]} bxa4 {[%emt 0:01:30]} 18. Rxa4 {[%emt 0:00:30]} a5 {[%emt 0:06:30]} 19. Rfa1 {[%emt 0:02:30]} Qc7 $146 {[%emt 0:00:30]} ({Predecessor:} 19... Qb7 20. b4 axb4 21. cxb4 Rxa4 22. Rxa4 {½-½ (46) Komora,A (2314)-Salai,L (2355) Slovakia 2012}) 20. Bc4 {[%emt 0:04:30]} Bd7 {[%emt 0:00:30]} 21. R4a3 {[%emt 0:02:30]} Rfb8 {[%emt 0:03:30]} 22. Nb4 {[%emt 0:01:30]} Rc8 {[%emt 0:07:30]} 23. Nd5 {[%emt 0:09:30]} Qc6 {[%emt 0:06:30]} 24. Ne3 {[%emt 0:02:30]} Qb6 {[%emt 0:14:50]} 25. Bd5 {[%emt 0:02:30]} Bb5 {[%emt 0:06:10]} 26. Qf3 {[%emt 0:08:30]} Ra7 {[%emt 0:01:01]} 27. Rb3 {[%emt 0:05:33]} Qa6 {[%emt 0:02:24]} 28. c4 {[%emt 0:01:57]} Be8 {[%emt 0:01:26]} 29. g3 {[%emt 0:02:01]} a4 {[%emt 0:00:30]} 30. Rba3 {[%emt 0:00:30]} Qb6 {[%emt 0:00:24]} 31. b3 {[%emt 0:02:32]} Rcc7 {[%emt 0:01:39]} 32. bxa4 {[%emt 0:00:23]} Ra5 {[%emt 0:01:49]} 33. Ng4 {[%emt 0:00:51]} Kg7 {[%emt 0:00:55]} 34. h4 {[%emt 0:00:19]} Bd8 {[%emt 0:00:23]} 35. Qc3 {[%emt 0:02:28]} h5 {[%emt 0:00:40]} 36. Ne3 {[%emt 0:01:13]} Bf6 {[%emt 0:00:29]} 37. Qc2 {[%emt 0:01:47]} Rca7 {[%emt 0:00:27]} 38. Nd1 {[%emt 0:00:49]} Qd4 {[%emt 0:00:44]} 39. Nc3 {[%emt 0:00:46]} Qc5 {[%emt 0:00:25]} 40. Qb3 {[%emt 0:00:20]} Bd7 {[%emt 0:00:36]} 41. Qb8 $16 {[%emt 0:00:43]} Bg4 {[%emt 0:00:37]} 42. Nb5 {[%emt 0:01:04]} Rd7 {[%emt 0:00:11]} 43. Kg2 {[%emt 0:00:38]} Rd8 {[%emt 0:00:16]} 44. Qb7 {[%emt 0:00:24]} Rd7 {[%emt 0:00:17]} 45. Qc6 {[%emt 0:00:15]} Qb4 {[%emt 0:00:32]} 46. R1a2 {[%emt 0:01:25]} Qe1 {[%emt 0:00:22]} 47. f3 {[%emt 0:00:55]} Bh3+ {[%emt 0:01:28]} 48. Kxh3 {[%emt 0:00:07]} Qh1+ {[%emt 0:00:00]} 49. Rh2 {[%emt 0:00:39]} Qf1+ {[%emt 0:00:29]} 50. Rg2 {[%emt 0:00:02]} Qh1+ {[%emt 0:01:15]} 51. Rh2 {[%emt 0:00:02]} Qf1+ {[%emt 0:00:00]} 52. Rg2 {[%emt 0:00:02]} Qh1+ {[%emt 0:00:29]} 1/2-1/2

[Event "Centenary THK University 2019"]
[Site "Ankara"]
[Date "2019.05.19"]
[Round "5"]
[White "Sekerci, Berkin"]
[Black "Keskin, Suara"]
[Result "1-0"]
[ECO "B07"]
[WhiteElo "1752"]
[BlackElo "1728"]
[Annotator "NA RC"]
[PlyCount "93"]
[EventDate "2019.05.17"]
[EventType "swiss"]
[EventCountry "TUR"]
[SourceTitle "playchess.com"]
[Source "ChessBase"]
[SourceQuality "1"]
[TimeControl "5400+30"]

1. e4 {[%emt 0:30:30]} d6 {[%emt 0:30:30]} 2. d4 {[%emt 0:00:00]} Nf6 {[%emt 0:00:00]} 3. Nc3 {[%emt 0:00:00]} g6 {[%emt 0:00:00]} 4. Be3 {[%emt 0:00:30]} Bg7 {[%emt 0:00:00]} 5. Qd2 {[%emt 0:00:30]} O-O {[%emt 0:01:00]} 6. O-O-O {[%emt 0:00:30]} Nbd7 {[%emt 0:00:00]} 7. Bh6 {[%emt 0:01:30]} c6 {[%emt 0:03:00]} 8. h4 {[%emt 0:02:30]} e5 {[%emt 0:00:30]} 9. dxe5 {[%emt 0:07:30]} dxe5 {[%emt 0:02:30]} 10. Nf3 {[%emt 0:00:30]} Bxh6 {[%emt 0:01:30]} 11. Qxh6 {[%emt 0:00:30]} Ng4 {[%emt 0:00:30]} 12. Qd2 {[%emt 0:02:30]} Qb6 {[%emt 0:00:30]} 13. h5 {[%emt 0:18:30]} Qxf2 {[%emt 0:04:30]} 14. Qd6 {[%emt 0:00:30]} Qc5 {[%emt 0:02:30]} 15. hxg6 {[%emt 0:02:30]} hxg6 {[%emt 0:00:30]} 16. Rh4 {[%emt 0:06:30]} Qxd6 {[%emt 0:03:30]} 17. Rxd6 {[%emt 0:02:30]} Ne3 {[%emt 0:00:30]} 18. Nd2 {[%emt 0:00:30]} Nxf1 {[%emt 0:00:30]} 19. Nxf1 {[%emt 0:00:30]} Kg7 {[%emt 0:00:00]} 20. Ne3 {[%emt 0:00:30]} Rh8 {[%emt 0:00:00]} 21. Rxh8 {[%emt 0:00:30]} Kxh8 {[%emt 0:00:30]} 22. Nc4 {[%emt 0:00:00]} Kg7 {[%emt 0:02:30]} 23. b4 {[%emt 0:01:00]} f6 {[%emt 0:02:30]} 24. b5 {[%emt 0:01:30]} cxb5 {[%emt 0:00:30]} 25. Nxb5 {[%emt 0:00:30]} b6 {[%emt 0:00:30]} 26. Rc6 {[%emt 0:01:45]} Ba6 {[%emt 0:00:30]} 27. Nc7 {[%emt 0:00:24]} Rc8 {[%emt 0:02:30]} 28. Nd6 {[%emt 0:01:03]} Nb8 {[%emt 0:00:30]} 29. Ne6+ {[%emt 0:02:02]} Kg8 {[%emt 0:00:30]} 30. Rxc8+ {[%emt 0:00:30]} Bxc8 {[%emt 0:00:30]} 31. Nxc8 {[%emt 0:00:30]} Nc6 {[%emt 0:00:30]} 32. Nc7 {[%emt 0:00:30]} Kf7 {[%emt 0:00:30]} 33. Nb5 {[%emt 0:00:30]} a6 {[%emt 0:00:00]} 34. Nc7 {[%emt 0:00:04]} a5 {[%emt 0:00:00]} 35. Nxb6 {[%emt 0:01:08]} f5 {[%emt 0:00:30]} 36. exf5 {[%emt 0:05:51]} gxf5 {[%emt 0:00:30]} 37. Nc4 {[%emt 0:00:45]} Kf6 {[%emt 0:00:00]} 38. Kd2 {[%emt 0:01:46]} Kg5 {[%emt 0:00:00]} 39. Ne6+ {[%emt 0:00:25]} Kf6 {[%emt 0:00:30]} 40. Nc5 {[%emt 0:00:19]} Kg5 {[%emt 0:00:30]} 41. Nb3 {[%emt 0:03:19]} a4 {[%emt 0:00:30]} 42. Nba5 {[%emt 0:00:23]} Nb4 {[%emt 0:00:30]} 43. a3 {[%emt 0:00:44]} Nd5 {[%emt 0:00:30]} 44. Nxe5 {[%emt 0:00:56]} Kf4 {[%emt 0:00:00]} 45. Nac4 {[%emt 0:01:00]} Kg3 {[%emt 0:00:00]} 46. Nd3 {[%emt 0:00:33]} Kxg2 {[%emt 0:00:30]} 47. Ne3+ {[%emt 0:00:05]} 1-0

[Event "Centenary THK University 2019"]
[Site "Ankara"]
[Date "2019.05.19"]
[Round "5"]
[White "Genc, Mehmet Emin"]
[Black "Ozalp, Burak"]
[Result "0-1"]
[ECO "B06"]
[WhiteElo "1664"]
[BlackElo "1901"]
[Annotator "NA RC"]
[PlyCount "76"]
[EventDate "2019.05.17"]
[EventType "swiss"]
[EventCountry "TUR"]
[SourceTitle "playchess.com"]
[Source "ChessBase"]
[SourceQuality "1"]
[TimeControl "5400+30"]

1. e4 {[%emt 0:30:30]} g6 {[%emt 0:30:30]} 2. Nf3 {[%emt 0:00:30]} Bg7 {[%emt 0:00:00]} 3. d4 {[%emt 0:00:30]} d6 {[%emt 0:00:00]} 4. Nc3 {[%emt 0:00:00]} a6 {[%emt 0:00:00]} 5. a4 {[%emt 0:01:00]} Nf6 {[%emt 0:03:00]} 6. Bc4 {[%emt 0:00:30]} O-O {[%emt 0:00:30]} 7. h3 {[%emt 0:00:30]} Nxe4 {[%emt 0:00:30]} 8. Nxe4 {[%emt 0:01:30]} d5 {[%emt 0:00:30]} 9. Bd3 {[%emt 0:00:00]} dxe4 {[%emt 0:00:30]} 10. Bxe4 {[%emt 0:00:00]} Nd7 {[%emt 0:00:30]} 11. Be3 {[%emt 0:01:30]} Nf6 {[%emt 0:02:30]} 12. Bd3 {[%emt 0:00:30]} Nd5 {[%emt 0:00:30]} 13. Bd2 {[%emt 0:01:30]} c5 {[%emt 0:06:30]} 14. c3 {[%emt 0:02:30]} cxd4 {[%emt 0:03:30]} 15. Nxd4 {[%emt 0:01:30]} e5 {[%emt 0:02:30]} 16. Ne2 {[%emt 0:02:30]} Bd7 {[%emt 0:07:30]} 17. O-O {[%emt 0:00:30]} Bc6 {[%emt 0:00:30]} 18. Qc2 {[%emt 0:02:30]} Rc8 {[%emt 0:04:30]} 19. Rfd1 {[%emt 0:07:30]} Qh4 {[%emt 0:02:30]} 20. c4 {[%emt 0:01:30]} Nf4 {[%emt 0:02:30]} 21. Nxf4 {[%emt 0:01:30]} exf4 {[%emt 0:00:30]} 22. Be4 {[%emt 0:00:30]} f3 {[%emt 0:00:30]} 23. gxf3 {[%emt 0:07:30]} Qxh3 {[%emt 0:01:30]} 24. Ra3 {[%emt 0:02:30]} Be5 {[%emt 0:04:30]} 25. f4 {[%emt 0:01:30]} Bxe4 {[%emt 0:02:30]} 26. Rxh3 {[%emt 0:14:31]} Bxc2 {[%emt 0:00:30]} 27. Rc1 {[%emt 0:00:30]} Bf5 {[%emt 0:00:00]} 28. Rb3 {[%emt 0:00:57]} Bd4 {[%emt 0:00:00]} 29. Rxb7 {[%emt 0:00:31]} Rfe8 {[%emt 0:00:30]} 30. b4 {[%emt 0:01:44]} Re2 {[%emt 0:00:30]} 31. Be3 {[%emt 0:00:08]} Bxe3 {[%emt 0:01:30]} 32. fxe3 {[%emt 0:00:03]} Rd8 {[%emt 0:00:00]} 33. c5 {[%emt 0:01:42]} Rdd2 {[%emt 0:00:00]} 34. b5 {[%emt 0:00:03]} Rg2+ {[%emt 0:00:30]} 35. Kf1 {[%emt 0:00:26]} Bd3+ {[%emt 0:00:30]} 36. Ke1 {[%emt 0:00:34]} Rde2+ {[%emt 0:00:30]} 37. Kf1 {[%emt 0:00:55]} Ref2+ {[%emt 0:00:00]} 38. Ke1 {[%emt 0:00:31]} Rf1# {[%emt 0:00:00]} 0-1

[Event "Centenary THK University 2019"]
[Site "Ankara"]
[Date "2019.05.19"]
[Round "5"]
[White "Bozdemir, Yusuf"]
[Black "Gok, Irfan"]
[Result "1/2-1/2"]
[ECO "D02"]
[WhiteElo "1619"]
[BlackElo "1739"]
[Annotator "NA RC"]
[PlyCount "117"]
[EventDate "2019.05.17"]
[EventType "swiss"]
[EventCountry "TUR"]
[SourceTitle "playchess.com"]
[Source "ChessBase"]
[SourceQuality "1"]
[TimeControl "5400+30"]

1. d4 {[%emt 0:30:30]} d5 {[%emt 0:30:30]} 2. Nf3 {[%emt 0:00:30]} Nf6 {[%emt 0:00:30]} 3. Bf4 {[%emt 0:00:00]} e6 {[%emt 0:01:30]} 4. e3 {[%emt 0:00:00]} Be7 {[%emt 0:00:30]} 5. Nbd2 {[%emt 0:00:00]} O-O {[%emt 0:00:30]} 6. Bd3 {[%emt 0:00:00]} Nbd7 {[%emt 0:00:00]} 7. Ne5 {[%emt 0:00:00]} c5 {[%emt 0:00:00]} 8. c3 {[%emt 0:00:00]} cxd4 {[%emt 0:01:30]} 9. exd4 {[%emt 0:00:30]} Re8 {[%emt 0:01:30]} 10. Qf3 {[%emt 0:00:00]} Nf8 {[%emt 0:00:30]} 11. Qh3 {[%emt 0:01:00]} Ng6 {[%emt 0:00:30]} 12. Bg5 {[%emt 0:02:30]} Nd7 {[%emt 0:02:30]} 13. Bxe7 {[%emt 0:10:30]} Qxe7 {[%emt 0:01:30]} 14. Ndf3 {[%emt 0:00:30]} Ndxe5 {[%emt 0:00:30]} 15. Nxe5 {[%emt 0:00:30]} Qg5 {[%emt 0:04:30]} 16. Bxg6 {[%emt 0:06:30]} fxg6 {[%emt 0:00:30]} 17. O-O {[%emt 0:01:30]} Rf8 {[%emt 0:07:30]} 18. Rae1 {[%emt 0:00:30]} Qd2 {[%emt 0:01:30]} 19. Re3 {[%emt 0:05:30]} Rf6 {[%emt 0:13:30]} 20. g4 {[%emt 0:05:30]} b6 {[%emt 0:03:30]} 21. g5 {[%emt 0:00:30]} Rf5 {[%emt 0:01:30]} 22. Nf3 {[%emt 0:14:30]} Qxb2 {[%emt 0:01:30]} 23. Qg3 {[%emt 0:00:30]} Qa3 {[%emt 0:04:30]} 24. Nh4 {[%emt 0:08:14]} Rf7 {[%emt 0:00:30]} 25. Rfe1 {[%emt 0:00:28]} Qf8 {[%emt 0:05:38]} 26. Rf3 {[%emt 0:00:48]} Rxf3 {[%emt 0:02:12]} 27. Nxf3 {[%emt 0:00:22]} Qf5 {[%emt 0:01:45]} 28. Nh4 {[%emt 0:00:48]} Qf8 {[%emt 0:00:51]} 29. Re3 {[%emt 0:00:11]} Bd7 {[%emt 0:03:00]} 30. Qe5 {[%emt 0:01:31]} Qb8 {[%emt 0:01:26]} 31. Nf3 {[%emt 0:00:37]} Qxe5 {[%emt 0:00:21]} 32. Nxe5 {[%emt 0:00:08]} Be8 {[%emt 0:01:01]} 33. Kg2 {[%emt 0:01:14]} Kf8 {[%emt 0:01:35]} 34. Kg3 {[%emt 0:00:30]} Ke7 {[%emt 0:00:30]} 35. Kf4 {[%emt 0:00:30]} Bb5 {[%emt 0:00:30]} 36. Rh3 {[%emt 0:00:15]} Rf8+ {[%emt 0:02:43]} 37. Ke3 {[%emt 0:00:07]} Be8 {[%emt 0:00:20]} 38. Rxh7 {[%emt 0:00:43]} Rg8 {[%emt 0:00:13]} 39. Ng4 {[%emt 0:00:38]} Kd6 {[%emt 0:00:27]} 40. Ne5 {[%emt 0:00:48]} b5 {[%emt 0:00:22]} 41. Nd3 {[%emt 0:00:30]} Bd7 {[%emt 0:01:14]} 42. Ne5 {[%emt 0:01:11]} Be8 {[%emt 0:00:02]} 43. Kd2 {[%emt 0:00:00]} a5 {[%emt 0:01:05]} 44. a3 {[%emt 0:00:00]} Ke7 {[%emt 0:00:57]} 45. Ke3 {[%emt 0:00:15]} Kd6 {[%emt 0:00:30]} 46. Ng4 {[%emt 0:00:02]} Bd7 {[%emt 0:00:50]} 47. Ne5 {[%emt 0:02:00]} Be8 {[%emt 0:00:02]} 48. Nd3 {[%emt 0:01:01]} Bf7 {[%emt 0:00:32]} 49. f3 {[%emt 0:03:18]} Be8 {[%emt 0:00:25]} 50. Ne5 {[%emt 0:00:19]} Ke7 {[%emt 0:00:17]} 51. Rh4 {[%emt 0:03:26]} Rf8 {[%emt 0:00:40]} 52. Rh7 {[%emt 0:01:02]} Rg8 {[%emt 0:00:05]} 53. Kf2 {[%emt 0:00:00]} Kd6 {[%emt 0:00:35]} 54. Kg3 {[%emt 0:00:23]} Ke7 {[%emt 0:00:22]} 55. Kg4 {[%emt 0:00:29]} Kd6 {[%emt 0:00:16]} 56. Kh4 {[%emt 0:00:58]} Ke7 {[%emt 0:00:31]} 57. Ng4 {[%emt 0:00:55]} Kd6 {[%emt 0:00:18]} 58. f4 {[%emt 0:00:41]} Bd7 {[%emt 0:00:25]} 59. Ne5 {[%emt 0:02:29]} 1/2-1/2

[Event "Centenary THK University 2019"]
[Site "Ankara"]
[Date "2019.05.19"]
[Round "5"]
[White "Civcer, Omer Faruk"]
[Black "Subasi, Fidel"]
[Result "0-1"]
[ECO "C10"]
[WhiteElo "1471"]
[BlackElo "1702"]
[Annotator "NA RC"]
[PlyCount "102"]
[EventDate "2019.05.17"]
[EventType "swiss"]
[EventCountry "TUR"]
[SourceTitle "playchess.com"]
[Source "ChessBase"]
[SourceQuality "1"]
[TimeControl "5400+30"]

1. e4 {[%emt 0:30:30]} e6 {[%emt 0:30:30]} 2. d4 {[%emt 0:00:30]} d5 {[%emt 0:00:30]} 3. Nd2 {[%emt 0:00:00]} dxe4 {[%emt 0:00:30]} 4. Nxe4 {[%emt 0:00:00]} Nd7 {[%emt 0:00:30]} 5. Nf3 {[%emt 0:00:00]} Ngf6 {[%emt 0:00:00]} 6. Ng3 {[%emt 0:00:00]} c5 {[%emt 0:01:00]} 7. c3 {[%emt 0:00:30]} cxd4 {[%emt 0:01:30]} 8. cxd4 {[%emt 0:01:30]} Be7 {[%emt 0:00:30]} 9. Bd3 {[%emt 0:00:30]} O-O {[%emt 0:00:30]} 10. O-O {[%emt 0:00:00]} b6 {[%emt 0:01:30]} 11. Ne5 {[%emt 0:00:00]} Bb7 {[%emt 0:00:30]} 12. f4 {[%emt 0:00:30]} Rc8 {[%emt 0:05:30]} 13. Kh1 {[%emt 0:00:30]} Qc7 {[%emt 0:04:30]} 14. Qe2 {[%emt 0:06:30]} Rfd8 {[%emt 0:02:30]} 15. Bd2 {[%emt 0:02:30]} Nf8 {[%emt 0:01:30]} 16. Rac1 {[%emt 0:06:30]} Qb8 {[%emt 0:00:00]} 17. Be3 {[%emt 0:00:30]} Qa8 {[%emt 0:01:00]} 18. Ba6 {[%emt 0:04:30]} Bxa6 {[%emt 0:06:30]} 19. Qxa6 {[%emt 0:00:30]} Nd5 {[%emt 0:00:30]} 20. Bd2 {[%emt 0:01:30]} Bb4 {[%emt 0:02:30]} 21. Qe2 {[%emt 0:05:30]} Bxd2 {[%emt 0:04:30]} 22. Qxd2 {[%emt 0:00:30]} Ne7 {[%emt 0:01:30]} 23. Qf2 {[%emt 0:00:30]} Qd5 {[%emt 0:01:30]} 24. Rxc8 {[%emt 0:00:30]} Nxc8 {[%emt 0:03:30]} 25. Rd1 {[%emt 0:00:30]} Qxa2 {[%emt 0:00:30]} 26. f5 {[%emt 0:01:30]} exf5 {[%emt 0:01:30]} 27. Nxf5 {[%emt 0:00:30]} Qd5 {[%emt 0:01:30]} 28. Ng4 {[%emt 0:01:30]} Ng6 {[%emt 0:01:30]} 29. Rf1 {[%emt 0:05:30]} Nd6 {[%emt 0:01:30]} 30. Nxg7 {[%emt 0:01:30]} Ne4 {[%emt 0:02:30]} 31. Nf6+ {[%emt 0:06:30]} Kxg7 {[%emt 0:00:30]} 32. Nxe4 {[%emt 0:00:30]} f5 {[%emt 0:07:45]} 33. Ng5 {[%emt 0:03:30]} h6 {[%emt 0:01:32]} 34. Nf3 {[%emt 0:00:30]} Re8 {[%emt 0:01:30]} 35. Qg3 {[%emt 0:00:30]} f4 {[%emt 0:02:50]} 36. Qg4 {[%emt 0:01:30]} h5 {[%emt 0:00:24]} 37. Qh3 {[%emt 0:00:45]} Re2 {[%emt 0:00:31]} 38. b3 {[%emt 0:03:17]} Kh6 {[%emt 0:00:29]} 39. Rc1 {[%emt 0:03:49]} Rb2 {[%emt 0:02:23]} 40. Qc8 {[%emt 0:03:35]} Qe4 {[%emt 0:03:47]} 41. Qd8 {[%emt 0:00:56]} Rxg2 {[%emt 0:01:14]} 42. Kxg2 {[%emt 0:01:12]} Qe2+ {[%emt 0:00:12]} 43. Kg1 {[%emt 0:00:00]} Qe3+ {[%emt 0:01:11]} 44. Kg2 {[%emt 0:00:00]} Qxc1 {[%emt 0:00:36]} 45. Qg5+ {[%emt 0:00:03]} Kg7 {[%emt 0:00:12]} 46. Nh4 {[%emt 0:00:42]} Qd2+ {[%emt 0:00:30]} 47. Kf1 {[%emt 0:00:45]} Qd1+ {[%emt 0:01:50]} 48. Kf2 {[%emt 0:00:07]} Qxd4+ {[%emt 0:00:17]} 49. Kf1 {[%emt 0:00:29]} Qd3+ {[%emt 0:01:57]} 50. Kf2 {[%emt 0:00:46]} Qe3+ {[%emt 0:00:00]} 51. Kf1 {[%emt 0:00:00]} Qh3+ {[%emt 0:00:01]} 0-1